[Event "Superbet Blitz Poland 2023"]
[Site "Warsaw"]
[Date "2023.05.25"]
[Round "18"]
[White "Carlsen, Magnus"]
[Black "Duda, Jan-Krzysztof"]
[Result "1/2-1/2"]
[ECO "B27"]
[WhiteElo "2853"]
[BlackElo "2724"]
[Annotator "TA"]
[PlyCount "247"]
[EventDate "2023.05.24"]
[EventType "tourn"]
[EventCountry "POL"]
[SourceTitle "playchess.com"]
[Source "ChessBase"]
[SourceQuality "1"]
[TimeControl "300+2"]

{[%evp 148,247,-8,-8,-8,-8,-8,-8,-8,-56,0,-8,-8,-8,-8,-8,-8,-8,-8,-8,-8,-8,-8,-8,-8,-8,-8,-8,-8,-8,-8,-8,-8,-8,-8,-8,-8,-8,-8,-8,-8,-8,-8,-8,0,-8,-8,-8,-8,-8,-8,-8,-8,-8,-8,-8,-8,-8,-8,-8,-8,-8,-8,-8,-8,-8,-7,-8,-7,-8,-7,-8,-8,-8,-7,-8,-8,-8,0,-8,-7,-7,-7,-7,-8,-29961,-8,-8,-8,-12787,-8,-8,0,0,0,0,0,0,0,0,7,7]} 1. e4 {[%emt 0:00:06]} c5 {[%emt 0:00:01]} 2. Nf3 {[%emt 0:00:02]} b6 {[%emt 0:00:00]} 3. d4 {[%emt 0:00:07]} cxd4 {[%emt 0:00:02]} 4. Nxd4 {[%emt 0:00:01]} Bb7 {[%emt 0:00:01]} 5. Nc3 {[%emt 0:00:02]} a6 {[%emt 0:00:01]} 6. Bg5 {[%emt 0:00:02]} Qc7 {[%emt 0:00:06]} 7. Nd5 {[%emt 0:00:24]} Qe5 {[%emt 0:00:28]} 8. Be3 {[%emt 0:00:09]} e6 {[%emt 0:00:06]} 9. Nf3 {[%emt 0:00:10]} Qxe4 {[%emt 0:00:35]} 10. Nc7+ {[%emt 0:00:08]} Ke7 {[%emt 0:00:01]} 11. Nxa8 {[%emt 0:00:29]} Bxa8 {[%emt 0:00:01]} 12. Qd4 {[%emt 0:00:28]} b5 {[%emt 0:00:25]} 13. a4 {[%emt 0:00:10]} Qxd4 {[%emt 0:00:09]} 14. Nxd4 {[%emt 0:00:05]} b4 {[%emt 0:00:01]} 15. a5 {[%emt 0:00:01]} Nf6 {[%emt 0:00:03]} 16. Nb3 {[%emt 0:00:13]} Nd5 {[%emt 0:00:07]} 17. Ba7 {[%emt 0:00:09]} Nc6 {[%emt 0:00:03]} 18. Bb6 {[%emt 0:00:01]} g5 {[%emt 0:00:10]} 19. Bxa6 {[%emt 0:00:14]} Bg7 {[%emt 0:00:01]} 20. Ra2 {[%emt 0:00:20]} Rb8 {[%emt 0:00:13]} 21. Be2 {[%emt 0:00:18]} Nxb6 {[%emt 0:00:05]} 22. axb6 {[%emt 0:00:02]} Nd4 {[%emt 0:00:02]} 23. Nxd4 {[%emt 0:01:05]} Bxd4 {[%emt 0:00:01]} 24. Bf3 {[%emt 0:00:01]} Bxf3 {[%emt 0:00:31]} 25. gxf3 {[%emt 0:00:01]} b3 {[%emt 0:00:01]} 26. cxb3 {[%emt 0:00:09]} Rxb6 {[%emt 0:00:01]} 27. h4 {[%emt 0:00:01]} h6 {[%emt 0:00:07]} 28. hxg5 {[%emt 0:00:08]} hxg5 {[%emt 0:00:02]} 29. Ke2 {[%emt 0:00:09]} Rxb3 {[%emt 0:00:01]} 30. Rd1 {[%emt 0:00:01]} Bb6 {[%emt 0:01:08]} 31. Rd3 {[%emt 0:00:05]} Rb5 {[%emt 0:00:02]} 32. b3 {[%emt 0:00:02]} f5 {[%emt 0:00:03]} 33. Ra4 {[%emt 0:00:06]} Bc5 {[%emt 0:00:06]} 34. b4 {[%emt 0:00:09]} Bb6 {[%emt 0:00:42]} 35. Rb3 {[%emt 0:00:02]} Kf6 {[%emt 0:00:02]} 36. Ra8 {[%emt 0:00:03]} Bc5 {[%emt 0:00:37]} 37. Ra5 {[%emt 0:00:05]} Rxb4 {[%emt 0:00:02]} 38. Rxb4 {[%emt 0:00:01]} Bxb4 {[%emt 0:00:01]} 39. Ra7 {[%emt 0:00:01]} d6 {[%emt 0:00:01]} 40. Rd7 {[%emt 0:00:06]} Bc5 {[%emt 0:00:01]} 41. Rh7 {[%emt 0:00:06]} Ke5 {[%emt 0:00:06]} 42. Rg7 {[%emt 0:00:14]} Kf4 {[%emt 0:00:03]} 43. Rg6 {[%emt 0:00:01]} e5 {[%emt 0:00:01]} 44. Rg8 {[%emt 0:00:03]} Bd4 {[%emt 0:00:06]} 45. Rd8 {[%emt 0:00:03]} Bc5 {[%emt 0:00:01]} 46. Ra8 {[%emt 0:00:01]} g4 {[%emt 0:00:03]} 47. Ra4+ {[%emt 0:00:02]} Bd4 {[%emt 0:00:01]} 48. fxg4 {[%emt 0:00:02]} Kxg4 {[%emt 0:00:02]} 49. f3+ {[%emt 0:00:03]} Kf4 {[%emt 0:00:01]} 50. Ra8 {[%emt 0:00:04]} e4 {[%emt 0:00:04]} 51. fxe4 {[%emt 0:00:02]} fxe4 {[%emt 0:00:01]} 52. Rf8+ {[%emt 0:00:02]} Ke5 {[%emt 0:00:01]} 53. Re8+ {[%emt 0:00:01]} Kd5 {[%emt 0:00:01]} 54. Kd2 {[%emt 0:00:02]} Bc5 {[%emt 0:00:01]} 55. Ke2 {[%emt 0:00:04]} Kd4 {[%emt 0:00:01]} 56. Ra8 {[%emt 0:00:02]} d5 {[%emt 0:00:01]} 57. Ra4+ {[%emt 0:00:01]} Ke5 {[%emt 0:00:01]} 58. Ra5 {[%emt 0:00:01]} Bb6 {[%emt 0:00:05]} 59. Rb5 {[%emt 0:00:02]} Bg1 {[%emt 0:00:02]} 60. Rb1 {[%emt 0:00:01]} Bc5 {[%emt 0:00:02]} 61. Rh1 {[%emt 0:00:04]} d4 {[%emt 0:00:06]} 62. Rh5+ {[%emt 0:00:01]} Kd6 {[%emt 0:00:00]} 63. Rf5 {[%emt 0:00:04]} Bb4 {[%emt 0:00:02]} 64. Rh5 {[%emt 0:00:01]} Ke6 {[%emt 0:00:03]} 65. Rb5 {[%emt 0:00:03]} Bd6 {[%emt 0:00:01]} 66. Rh5 {[%emt 0:00:02]} Bf4 {[%emt 0:00:01]} 67. Rh3 {[%emt 0:00:02]} Kd5 {[%emt 0:00:02]} 68. Rh5+ {[%emt 0:00:02]} Ke6 {[%emt 0:00:05]} 69. Rh3 {[%emt 0:00:03]} Kd6 {[%emt 0:00:03]} 70. Ra3 {[%emt 0:00:03]} Kc5 {[%emt 0:00:00]} 71. Ra5+ {[%emt 0:00:02]} Kb4 {[%emt 0:00:03]} 72. Rd5 {[%emt 0:00:03]} Kc4 {[%emt 0:00:01]} 73. Rf5 {[%emt 0:00:00]} d3+ {[%emt 0:00:01]} 74. Kd1 {[%emt 0:00:01]} Bg3 $2 {[%emt 0:00:04]} (74... Bd6 75. Rg5 e3 76. Rg2 Kd4 77. Ke1 Ke4 78. Kf1 Bc7) 75. Rg5 $1 $11 {[%emt 0:00:01]} Bf2 {[%emt 0:00:01]} 76. Rg4 {[%emt 0:00:01]} Kd5 {[%emt 0:00:03]} (76... Kd4 77. Rg7 $17) 77. Rg8 {[%emt 0:00:01]} ({Reject} 77. Kd2 Kd4 78. Kd1 Be3 $17) 77... Kd4 {[%emt 0:00:02]} (77... e3 {seems wilder.} 78. Re8 Kd4 79. Rd8+ Ke4) 78. Rd8+ {[%emt 0:00:01]} (78. Rg4 $1 $11) 78... Ke3 {[%emt 0:00:01]} (78... Kc4 $1 $15 79. Re8 Kd4) 79. Re8 {[%emt 0:00:01]} Bh4 {[%emt 0:00:01]} 80. Re6 {[%emt 0:00:01]} Bd8 {[%emt 0:00:02]} 81. Re8 {[%emt 0:00:01]} Ba5 {[%emt 0:00:01]} 82. Re7 {[%emt 0:00:02]} Bb4 {[%emt 0:00:02]} 83. Re8 {[%emt 0:00:03]} Kf3 {[%emt 0:00:04]} 84. Rd8 $1 {[%emt 0:00:00]} Kf4 {[%emt 0:00:04]} 85. Rd7 {[%emt 0:00:03]} Ke3 {[%emt 0:00:01]} 86. Rd8 {[%emt 0:00:01]} Bc3 {[%emt 0:00:01]} 87. Rd7 {[%emt 0:00:01]} Kf4 {[%emt 0:00:03]} 88. Rd8 {[%emt 0:00:01]} Ke5 {[%emt 0:00:01]} 89. Rd7 {[%emt 0:00:03]} Bb4 {[%emt 0:00:02]} 90. Rd8 $1 {[%emt 0:00:02]} Be7 {[%emt 0:00:02]} 91. Re8 {[%emt 0:00:01]} Kd6 {[%emt 0:00:01]} (91... Ke6 $5 92. Kd2 $8 Kf7 $11) 92. Kd2 $1 {[%emt 0:00:03]} Bg5+ {[%emt 0:00:03]} 93. Kc3 {[%emt 0:00:02]} Kd5 {[%emt 0:00:01]} 94. Ra8 {[%emt 0:00:07]} Bf6+ {[%emt 0:00:03]} 95. Kd2 {[%emt 0:00:01]} Bg5+ {[%emt 0:00:01]} (95... Kd4 $5 96. Ra4+ $8 Kd5 $11) 96. Kc3 {[%emt 0:00:01]} Ke5 {[%emt 0:00:05]} 97. Rf8 {[%emt 0:00:05]} Bf4 {[%emt 0:00:02]} 98. Rf7 {[%emt 0:00:04]} Be3 {[%emt 0:00:01]} (98... d2 {feels hotter.} 99. Kc2 e3 100. Rd7 Bg5) 99. Rf8 {[%emt 0:00:02]} Bd4+ {[%emt 0:00:02]} 100. Kd2 {[%emt 0:00:01]} Bc5 {[%emt 0:00:01]} 101. Rf7 {[%emt 0:00:02]} Kd4 {[%emt 0:00:02]} ({Inferior is} 101... Bb4+ 102. Ke3 $17) 102. Rf4 $1 {[%emt 0:00:04]} (102. Rd7+ Kc4 103. Ke1 e3 $19) 102... Bb4+ {[%emt 0:00:02]} 103. Kd1 {[%emt 0:00:00]} Bc3 {[%emt 0:00:03]} 104. Rh4 {[%emt 0:00:02]} Kd5 {[%emt 0:00:02]} 105. Rh5+ $1 {[%emt 0:00:03]} Ke6 {[%emt 0:00:01]} 106. Rc5 {[%emt 0:00:03]} Bd4 {[%emt 0:00:02]} (106... Be5 $5 107. Kd2 $8 Bd6 $11) 107. Ra5 {[%emt 0:00:04]} Kd6 {[%emt 0:00:04]} 108. Ra8 {[%emt 0:00:03]} Ke5 {[%emt 0:00:01]} (108... e3 {looks sharper.} 109. Ra3 d2 110. Ra5 Bc5) 109. Re8+ {[%emt 0:00:01]} Kf4 {[%emt 0:00:01]} 110. Rd8 {[%emt 0:00:01]} Bc3 {[%emt 0:00:03]} 111. Rf8+ {[%emt 0:00:01]} Ke3 {[%emt 0:00:02]} 112. Re8 {[%emt 0:00:01]} Ba5 {[%emt 0:00:02]} 113. Re6 {[%emt 0:00:02]} Kd4 {[%emt 0:00:01]} 114. Rd6+ {[%emt 0:00:01]} Kc4 {[%emt 0:00:02]} 115. Re6 {[%emt 0:00:01]} Kd5 {[%emt 0:00:02]} 116. Re8 $2 {[%emt 0:00:01][%mdl 8192]} (116. Rg6 $11 Bc3 117. Rg5+ Kd4 118. Rg4) 116... Kd4 $2 {[%emt 0:00:01]} (116... Bb6 {mates} 117. Rb8 Bc5 118. Rg8 e3 119. Re8 Kd4 120. Re6 Bb4 121. Re8 Bd6 122. Ke1 Be5 123. Rg8 Kc3 124. Re8 Kc2 125. Rxe5 d2+ 126. Ke2 d1=Q+ 127. Kxe3 Qg1+ 128. Kf3 Qh1+ 129. Kg4 Qh7 130. Kg5 Qf7 131. Re3 Kd2 132. Re5 Kd3 133. Re1 Qg8+ 134. Kf6 Qf8+ 135. Kg6 Qf4 136. Re7 Kd4 137. Ra7 Qd6+ 138. Kf7 Ke5 139. Re7+ Kd5 140. Ke8 Qg6+ 141. Kf8 Qf5+ 142. Rf7 Qc8+ 143. Kg7 Qc3+ 144. Rf6 Ke5 145. Rf8 Qd4 146. Kh7 Qd6 147. Kg7 Qe7+ 148. Rf7 Qg5+ 149. Kh7 Ke6 150. Rf8 Qg4 151. Kh6 Ke7 152. Ra8 Qh3+ 153. Kg5 Qg2+ 154. Kf5 Qxa8 155. Kf4 Kf6 156. Ke3 Qd5 157. Kf2 Kf5 158. Ke3 Qd1 159. Kf2 Kf4 160. Kg2 Qe2+ 161. Kh1 Kg3 162. Kg1 Qg2#) 117. Ra8 $1 $11 {[%emt 0:00:01]} Bc7 {[%emt 0:00:04]} 118. Rc8 $2 {[%emt 0:00:03][%mdl 8192] [#]} (118. Ra4+ $11 Ke3 119. Ra7) 118... Bf4 $2 {[%emt 0:00:02]} (118... Bb6 $1 $19 {( -> ...e3)} 119. Rb8 Bc5) 119. Rd8+ {[%emt 0:00:02]} Kc3 {[%emt 0:00:01]} 120. Rc8+ {[%emt 0:00:01]} Kb3 {[%emt 0:00:02]} 121. Rf8 {[%emt 0:00:01]} Bh6 {[%emt 0:00:03]} 122. Rh8 {[%emt 0:00:01]} Bg7 {[%emt 0:00:02]} 123. Re8 {[%emt 0:00:01]} Kc3 {[%emt 0:00:03]} 124. Rxe4 {[%emt 0:00:01]} 1/2-1/2

[Event "Superbet Blitz Poland 2023"]
[Site "Warsaw"]
[Date "2023.05.25"]
[Round "18"]
[White "Rapport, Richard"]
[Black "Aronian, Levon"]
[Result "1/2-1/2"]
[ECO "D03"]
[WhiteElo "2745"]
[BlackElo "2745"]
[Annotator "TA"]
[PlyCount "93"]
[EventDate "2023.05.24"]
[EventType "tourn"]
[EventCountry "POL"]
[SourceTitle "playchess.com"]
[Source "ChessBase"]
[SourceQuality "1"]
[TimeControl "300+2"]

{[%evp 12,93,8,8,0,-6,55,0,5,0,3,0,4,10,8,7,0,5,8,6,21,15,10,13,1,6,14,6,101,109,123,114,114,118,169,101,95,101,107,103,108,109,109,89,109,89,89,89,89,89,110,106,107,89,156,154,165,161,172,160,164,163,131,0,0,0,0,0,0,0,0,0,0,0,0,0,0,0,0,0,0,0,0,0]} 1. d4 {[%emt 0:00:03]} Nf6 {[%emt 0:00:02]} 2. Bg5 {[%emt 0:00:01]} d5 {[%emt 0:00:01]} 3. e3 {[%emt 0:00:02]} g6 {[%emt 0:00:01]} 4. Nd2 {[%emt 0:00:04]} Bg7 {[%emt 0:00:02]} 5. c3 {[%emt 0:00:02]} O-O {[%emt 0:00:03]} 6. Ngf3 {[%emt 0:00:03]} Nbd7 {[%emt 0:00:04]} 7. h3 {[%emt 0:00:03]} Re8 {[%emt 0:00:04] D03: 1 d4 d5 2 Nf3 Nf6 3 Bg5, including Torre Attack with early ...d5.} 8. Bf4 {[%emt 0:00:02]} Ne4 {[%emt 0:00:19] [#]} (8... Nh5 $11) 9. Bh2 $146 {[%emt 0:00:15]} (9. Nxe4 $14 dxe4 10. Ng5) ({Predecessor:} 9. Nxe4 dxe4 10. Ng5 Nf6 11. Bc4 e6 12. Qc2 Bd7 13. Be5 Bc6 14. h4 h6 15. Bxf6 Bxf6 16. Nxe4 Bxh4 {1-0 Stefanova,A (2550)-Bianchi,A (2187) Mar del Plata op 34th 2003 (9)}) 9... Nd6 {[%emt 0:00:06]} 10. Qb3 {[%emt 0:00:16]} c6 {[%emt 0:00:14]} 11. Be2 {[%emt 0:00:11]} e5 {[%emt 0:00:03]} 12. O-O {[%emt 0:00:05]} Qe7 {[%emt 0:00:03]} 13. Qa3 {[%emt 0:00:08]} a5 {[%emt 0:00:18]} 14. Rfe1 {[%emt 0:00:12]} b5 {[%emt 0:00:18]} 15. dxe5 {[%emt 0:00:26]} Nxe5 {[%emt 0:00:01]} 16. Nxe5 {[%emt 0:00:02]} Bxe5 {[%emt 0:00:01]} 17. Bxe5 {[%emt 0:00:02]} Qxe5 {[%emt 0:00:01]} 18. Qc5 {[%emt 0:00:08]} Bd7 {[%emt 0:00:07]} 19. a4 {[%emt 0:00:03][%cal Ba2a4,Ba4a5,Ba5a6][%mdl 32]} b4 {[%emt 0:00:45]} 20. cxb4 $16 {[%emt 0:00:18]} axb4 {[%emt 0:00:01]} 21. a5 {[%emt 0:00:02]} (21. Qxb4 Rab8 22. Qc3 Rxb2 23. Qxe5 Rxe5 $14) 21... Reb8 {[%emt 0:01:54]} 22. a6 {[%emt 0:00:14] Against Nb7} Nc8 {[%emt 0:00:01]} (22... Nf5 $16) 23. Qd4 {[%emt 0:00:38]} (23. e4 $18) 23... Qxd4 {[%emt 0:00:16]} 24. exd4 {[%emt 0:00:01]} Nd6 {[%emt 0:00:01]} 25. Nb3 {[%emt 0:00:05]} Ra7 {[%emt 0:00:02]} 26. Nc5 {[%emt 0:00:05]} Bc8 {[%emt 0:00:13]} 27. Bd3 {[%emt 0:00:06]} Kf8 {[%emt 0:00:02]} 28. Ra4 {[%emt 0:00:07] White is much more active.} Bf5 {[%emt 0:00:05]} 29. Bf1 {[%emt 0:00:19]} Bc2 {[%emt 0:00:07]} 30. b3 {[%emt 0:00:28]} Nf5 {[%emt 0:00:02] [#]} 31. Re2 $1 {[%emt 0:00:17]} Nxd4 {[%emt 0:00:01] [#]} 32. Rd2 {[%emt 0:00:01]} Nxb3 {[%emt 0:00:09]} ({Better is} 32... Bxb3 33. Ra1 (33. Rxd4 Bxa4 34. Nxa4 Ke7 $17) (33. Ra5 Ke7 $16) 33... Bc2 34. Rxd4 b3) 33. Rxc2 {[%emt 0:00:02]} Nxc5 {[%emt 0:00:01]} 34. Rxc5 {[%emt 0:00:02]} Rb6 {[%emt 0:00:01]} 35. Rc1 {[%emt 0:00:28]} Ke7 {[%emt 0:00:00]} 36. Rb1 {[%emt 0:00:01]} c5 {[%emt 0:00:03]} 37. Rd1 {[%emt 0:00:00]} ({White must play} 37. Ra5 $16 Kd6 38. Bb5) 37... b3 $1 $11 {[%emt 0:00:09] Hoping for ...c4. The position is equal.} 38. Rxd5 {[%emt 0:00:22][%cal Od5d1] aiming for Rd1!} b2 {[%emt 0:00:01]} 39. Bd3 {[%emt 0:00:08] Threatens to win with Re5+.} (39. Rxc5 $2 {is the wrong capture.} b1=Q 40. Rac4 Qa1 $19) 39... b1=Q+ {[%emt 0:00:09]} 40. Bxb1 {[%emt 0:00:01]} Rxb1+ {[%emt 0:00:01][%mdl 4096] Endgame KRR-KRR} 41. Kh2 {[%emt 0:00:00]} Rb6 {[%emt 0:00:10]} 42. Rxc5 {[%emt 0:00:08]} Rbxa6 {[%emt 0:00:02]} 43. Rxa6 {[%emt 0:00:01]} Rxa6 {[%emt 0:00:01]} 44. Rc4 {[%emt 0:00:01]} Ra7 {[%emt 0:00:01]} 45. Rc5 {[%emt 0:00:01]} Ra6 {[%emt 0:00:01]} 46. Rc4 {[%emt 0:00:00]} Ra7 {[%emt 0:00:00]} 47. Rc5 {Weighted Error Value: White=0.10 (very precise) /Black=0.13 (very precise)} 1/2-1/2

[Event "Superbet Blitz Poland 2023"]
[Site "Warsaw"]
[Date "2023.05.25"]
[Round "18"]
[White "Deac, Bogdan-Daniel"]
[Black "So, Wesley"]
[Result "1/2-1/2"]
[ECO "D41"]
[WhiteElo "2700"]
[BlackElo "2760"]
[Annotator "TA"]
[PlyCount "120"]
[EventDate "2023.05.24"]
[EventType "tourn"]
[EventCountry "POL"]
[SourceTitle "playchess.com"]
[Source "ChessBase"]
[SourceQuality "1"]
[TimeControl "300+2"]

{[%evp 11,120,27,26,27,32,-18,27,29,31,29,26,25,31,20,14,20,27,25,28,30,26,26,29,27,26,27,31,34,36,31,36,41,45,6,8,8,8,5,8,7,62,62,62,62,62,62,62,62,62,62,62,62,62,59,93,62,98,97,98,93,93,93,93,93,93,93,93,86,93,81,93,81,85,79,79,79,79,79,29976,0,29977,29976,29978,79,79,0,72,65,79,72,85,79,79,0,62,85,79,79,74,0,77,79,86,0,82,0,79,0,98,0,29984]} 1. d4 {[%emt 0:00:02]} Nf6 {[%emt 0:00:01]} 2. c4 {[%emt 0:00:01]} e6 {[%emt 0:00:00]} 3. Nf3 {[%emt 0:00:01]} d5 {[%emt 0:00:01]} 4. Nc3 {[%emt 0:00:03]} c5 {[%emt 0:00:01]} 5. cxd5 {[%emt 0:00:02]} cxd4 {[%emt 0:00:01]} 6. Qxd4 {[%emt 0:00:04]} exd5 {[%emt 0:00:01]} 7. e4 {[%emt 0:00:03] D41: Queen's Gambit Declined: Semi-Tarrasch with 5 cxd5.} dxe4 {[%emt 0:00:01]} 8. Qxd8+ {[%emt 0:00:01]} Kxd8 {[%emt 0:00:01]} 9. Ng5 {[%emt 0:00:02][%csl LRe4,LRf7] White has an edge.} Be6 {[%emt 0:00:01]} 10. Nxe6+ {[%emt 0:00:37]} fxe6 {[%emt 0:00:04]} 11. Bg5 {[%emt 0:00:01]} Nc6 {[%emt 0:00:01]} 12. Bc4 {[%emt 0:00:09]} Ke7 {[%emt 0:00:02]} 13. Nxe4 {[%emt 0:00:01]} Kf7 {[%emt 0:00:02]} 14. Bxf6 {[%emt 0:00:07]} gxf6 {[%emt 0:00:02]} 15. O-O-O {[%emt 0:00:03]} Rd8 {[%emt 0:00:02] Inhibits Rd7+.} ({But not} 15... Ne5 16. Bb3 $16) 16. Rxd8 {[%emt 0:00:16]} Nxd8 {[%emt 0:00:02]} 17. Rd1 {[%emt 0:00:03]} Be7 {[%emt 0:00:02]} 18. Rd7 {[%emt 0:00:04] aiming for Nd6+.} f5 {[%emt 0:00:01]} 19. Nd6+ {[%emt 0:00:01]} Kf6 {[%emt 0:00:02]} 20. Nxb7 {[%emt 0:00:02]} Nxb7 {[%emt 0:00:01]} 21. Rxb7 $14 {[%emt 0:00:01][%mdl 4096] Endgame KRB-KRB} Bc5 {[%emt 0:00:01]} 22. Rc7 {[%emt 0:00:19]} Bxf2 {[%emt 0:00:04]} 23. Rc6 {[%emt 0:00:01]} Re8 {[%emt 0:00:03]} 24. b4 {[%emt 0:00:01][%cal Bb2b4,Bb4b5,Bb5c6][%mdl 32]} Bg1 {[%emt 0:00:12]} 25. h3 {[%emt 0:00:02]} Rb8 {[%emt 0:00:02]} ({Better is} 25... f4 $11) 26. Rxe6+ {[%emt 0:00:02]} Kg5 {[%emt 0:00:04][%cal Ob8c8] Strongly threatening ...Rc8!} 27. b5 $1 {[%emt 0:00:02]} Rc8 {[%emt 0:00:02]} 28. Rc6 {[%emt 0:00:01]} Rxc6 {[%emt 0:00:01]} 29. bxc6 {[%emt 0:00:02] KB-KB} Bb6 {[%emt 0:00:02]} 30. Kd2 {[%emt 0:00:17]} Kf6 {[%emt 0:00:02] [#]} 31. Bg8 $146 {[%emt 0:00:13]} ({Predecessor:} 31. Bd3 h6 32. Ke2 f4 33. Kf3 Bc7 34. Ke4 a5 35. Bc4 Bb8 36. Kd5 Bc7 37. Bd3 Bb8 38. Kc5 Bc7 {½-½ Keymer,V (2664)-Vidit,S (2727) Berlin FIDE GP 1 Pool-C 2022 (2)}) 31... h6 {[%emt 0:00:01]} 32. Bh7 {[%emt 0:00:03]} f4 {[%emt 0:00:07]} 33. Kd3 {[%emt 0:00:02]} a5 {[%emt 0:00:06]} 34. Kc4 {[%emt 0:00:03]} Bc7 {[%emt 0:00:01]} 35. h4 {[%emt 0:00:39]} Ke5 {[%emt 0:00:05]} 36. Kb5 {[%emt 0:00:02]} Bd8 {[%emt 0:00:08]} 37. h5 {[%emt 0:00:06]} Bc7 {[%emt 0:00:02]} 38. Bd3 {[%emt 0:00:03]} Bd8 {[%emt 0:00:02]} 39. Be2 {[%emt 0:00:02]} Bc7 {[%emt 0:00:09]} 40. Bf3 {[%emt 0:00:02]} Bd8 {[%emt 0:00:01]} 41. Ka6 {[%emt 0:00:01]} Bc7 {[%emt 0:00:03]} 42. a4 {[%emt 0:00:02]} Kd6 {[%emt 0:00:03]} 43. Kb7 {[%emt 0:00:01]} Bd8 {[%emt 0:00:03]} 44. Kc8 {[%emt 0:00:02]} Bc7 {[%emt 0:00:02][%mdl 8192]} (44... Bb6 $16) 45. Kb7 {[%emt 0:00:03]} Bd8 {[%emt 0:00:02]} 46. Be4 {[%emt 0:00:03]} Bc7 {[%emt 0:00:01]} 47. Kc8 $2 {[%emt 0:00:02]} (47. Bd5 {mates} Bd8 48. Bf7 Bc7 49. Bg6 Bd8 50. Bf5 Ke5 51. Kc8 (51. c7 Bxc7 52. Bg6 Kd6 $11) 51... Bb6 52. Bg4) 47... Bb6 $16 {[%emt 0:00:02]} 48. Bf3 {[%emt 0:00:20] Intending Kb8 and mate.} Bc7 {[%emt 0:00:02] [#]} 49. Bd5 $1 {[%emt 0:00:06][%mdl 64] Deflection, Promotion} Bb6 $1 {[%emt 0:00:07]} 50. Be4 {[%emt 0:00:02]} Bc7 {[%emt 0:00:01]} 51. Bf3 {[%emt 0:00:01]} Bb6 {[%emt 0:00:01]} 52. Be4 {[%emt 0:00:01]} Bc7 $1 {[%emt 0:00:02]} 53. Kb7 {[%emt 0:00:02] Prevents Bb6.} Bd8 {[%emt 0:00:01]} 54. Bf3 {[%emt 0:00:01]} Bc7 {[%emt 0:00:01]} 55. Be4 {[%emt 0:00:01]} Bd8 {[%emt 0:00:01]} 56. Bf5 {[%emt 0:00:01]} Bc7 {[%emt 0:00:01]} 57. Be4 {[%emt 0:00:01] White is more active.} Bd8 {[%emt 0:00:01]} 58. Bf3 {[%emt 0:00:01]} Bc7 {[%emt 0:00:02]} 59. Be4 {[%emt 0:00:01]} Bd8 {[%emt 0:00:02]} 60. Bf3 {[%emt 0:00:01]} (60. Bh7 $16) 60... Ke5 $2 {[%emt 0:00:05][%mdl 40960] Weighted Error Value: White=0.33/Black=0.19 (very precise) . An unexpected result.} (60... Bc7 $11) 1/2-1/2